bitfinex/quotes_SOLUSD_20260202
["timestamp","ask_amount","ask_price","bid_price","bid_amount"]
[1770004418407,30.0,99.9,99.89,22.86068642]
[1770004418711,4.5,99.989,99.894,4.27527085]
[1770004418898,4.5,99.979,99.92,22.86068642]
[1770004419087,4.5,99.969,99.91,22.86068642]
[1770004419283,4.5,99.969,99.891,27.82]
[1770004419284,4.5,99.949,99.891,27.82]
[1770004419483,4.5,99.949,99.9,22.86068642]
[1770004420095,4.5,99.939,99.891,27.82]
[1770004420299,4.5,99.929,99.891,27.82]
[1770004420501,4.5,99.947,99.891,27.82]
[1770004420704,30.0,99.91,99.891,27.82]
[1770004420894,4.5,99.909,99.84,0.2]
[1770004421090,4.5,99.909,99.86,22.86068642]
[1770004421292,4.5,99.909,99.84,0.2]
[1770004421603,4.5,99.909,99.87,22.86068642]
[1770004421812,30.0,99.91,99.88,22.86068642]
[1770004422194,30.0,99.91,99.84,0.2]
[1770004422394,30.0,99.91,99.88,22.86068642]
[1770004422611,30.0,99.91,99.9,22.86068642]
[1770004422816,10.14,99.91,99.9,22.86068642]
[1770004423107,7.97521915,99.91,99.9,22.86068642]
[1770004423312,4.5,99.945,99.9,22.86068642]
[1770004423825,4.5,99.939,99.88,22.86068642]
[1770004424142,4.5,99.959,99.91,22.86068642]
[1770004424296,30.0,99.92,99.91,22.86068642]
[1770004425691,4.5,99.979,99.91,22.86068642]
[1770004425897,4.5,99.979,99.95,22.86068642]
[1770004426108,4.5,99.979,99.94,22.86068642]
[1770004426314,4.5,100.0,99.96,22.86068642]
[1770004426498,4.5,100.0,99.97,22.86068642]
[1770004427119,4.5,100.0,99.98,22.86068642]
[1770004427420,22.86068642,100.04,99.99,22.86068642]
[1770004427421,4.5,100.04,99.99,22.86068642]
[1770004427714,4.5,100.06,100.02,22.86068642]
[1770004427919,30.0,100.03,100.02,22.86068642]
[1770004428116,30.0,100.03,99.954,49.81814337]
[1770004428117,30.0,100.03,100.01,22.86068642]
[1770004428324,30.0,100.03,99.978,4.27527085]
[1770004428816,30.0,100.02,99.98,22.86068642]
[1770004429212,30.0,100.02,99.99,22.86068642]
[1770004429410,30.0,100.02,100.0,22.86068642]
[1770004429796,30.0,100.02,99.958,4.27527085]
[1770004429797,34.5,100.02,99.98,22.86068642]
[1770004430321,4.5,100.01,99.96,22.86068642]
[1770004430496,30.0,99.99,99.937,27.82]
[1770004430705,30.0,99.99,99.98,22.86068642]
[1770004430706,10.14,99.99,99.98,22.86068642]
[1770004431007,9.98138881,99.99,99.97,22.86068642]
[1770004431210,9.98138881,99.99,99.938,27.82]
[1770004431211,8.49988056,99.99,99.96,22.86068642]
[1770004431713,8.49988056,99.99,99.95,22.86068642]
[1770004431921,8.49988056,99.99,99.97,22.86068642]
[1770004432724,22.86068642,100.02,99.97,22.86068642]
[1770004432898,27.36068642,100.01,99.97,22.86068642]
[1770004433218,27.36068642,100.01,99.911,49.40330982]
[1770004433219,27.36068642,100.01,99.96,22.86068642]
[1770004433408,27.36068642,100.0,99.95,22.86068642]
[1770004433796,4.5,99.999,99.95,22.86068642]
[1770004434201,22.86068642,99.96,99.848,50.97293923]
[1770004434398,4.27527085,100.01,99.848,50.97293923]
[1770004434399,4.5,99.949,99.9,22.86068642]
[1770004434610,4.5,99.939,99.84,0.2]
[1770004434809,4.5,99.929,99.88,22.86068642]
[1770004435019,30.0,99.94,99.87,22.86068642]
[1770004435322,4.5,99.939,99.89,22.86068642]
[1770004435511,4.5,99.929,99.89,22.86068642]
[1770004435824,30.0,99.91,99.88,22.86068642]
[1770004436702,30.0,99.91,99.87,22.86068642]
[1770004436915,30.0,99.91,99.89,22.86068642]
[1770004437100,30.0,99.91,99.9,22.86068642]
[1770004437301,30.0,99.91,99.89,22.86068642]
[1770004437709,30.0,99.91,99.88,22.86068642]
[1770004438335,30.0,99.91,99.84,0.2]
[1770004438336,4.5,99.909,99.86,22.86068642]
[1770004439322,4.5,99.909,99.84,0.2]
[1770004439323,4.5,99.909,99.87,22.86068642]
[1770004439624,30.0,99.91,99.89,22.86068642]
[1770004439802,30.0,99.91,99.88,22.86068642]
[1770004439803,4.5,99.909,99.88,22.86068642]
[1770004440005,30.0,99.89,99.88,22.86068642]
[1770004440199,10.14,99.89,99.88,22.86068642]
[1770004440423,3.89935587,99.89,99.88,22.86068642]
[1770004440603,4.5,99.944,99.88,22.86068642]
[1770004440799,4.5,99.944,99.91,22.86068642]
[1770004441004,4.5,99.984,99.93,22.86068642]
[1770004441215,4.5,100.03,99.97,22.86068642]
[1770004441418,4.5,100.03,100.01,22.86068642]
[1770004441641,4.07985344,100.01,99.93,4.2270327]
[1770004441801,22.86068642,100.02,99.92,22.86068642]
[1770004441802,4.07985344,99.969,99.92,22.86068642]
[1770004442125,30.0,99.95,99.92,22.86068642]
[1770004442322,30.0,99.95,99.93,22.86068642]
[1770004442928,30.0,99.95,99.94,22.86068642]
[1770004443118,30.0,99.95,99.93,22.86068642]
[1770004443301,4.07985344,99.949,99.884,4.2270327]
[1770004443506,4.07985344,99.949,99.84,0.2]
[1770004443507,4.07985344,99.919,99.87,22.86068642]
[1770004443707,4.07985344,99.909,99.85,22.86068642]
[1770004444003,30.0,99.93,99.811,4.2270327]
[1770004444004,4.07985344,99.869,99.811,4.2270327]
[1770004444216,30.0,99.93,99.81,0.2]
[1770004444217,22.86068642,99.84,99.81,0.2]
[1770004444418,4.07985344,99.819,99.75,27.08771912]
[1770004444708,26.94053986,99.81,99.75,27.08771912]
[1770004445026,22.86068642,99.8,99.75,4.2270327]
[1770004445210,4.07985344,99.799,99.75,22.86068642]
[1770004445405,4.0390549,99.769,99.71,22.86068642]
[1770004445613,52.86068642,99.77,99.69,22.86068642]
[1770004445614,4.0390549,99.759,99.69,22.86068642]
[1770004445804,4.0390549,99.759,99.691,4.2270327]
[1770004446005,30.0,99.77,99.721,4.2270327]
[1770004446226,4.0390549,99.769,99.695,4.2270327]
[1770004446414,30.0,99.73,99.695,4.2270327]
[1770004446614,30.0,99.77,99.724,4.2270327]
[1770004446819,2.59487447,99.77,99.76,22.86068642]
[1770004447021,4.07985344,99.807,99.76,22.86068642]
[1770004447326,4.07985344,99.807,99.78,22.86068642]
[1770004447522,30.0,99.79,99.78,22.86068642]
[1770004447724,4.38242893,99.847,99.78,22.86068642]
[1770004447935,4.38242893,99.847,99.771,4.29169773]
[1770004447936,4.38242893,99.847,99.81,22.86068642]
[1770004448333,4.38242893,99.847,99.82,22.86068642]
[1770004448508,4.5,99.868,99.83,22.86068642]
[1770004448714,4.5,99.868,99.85,22.86068642]
[1770004448915,4.5,99.868,99.83,22.86068642]
[1770004449112,4.5,99.868,99.8,22.86068642]
[1770004449325,4.38242893,99.859,99.79,22.86068642]
[1770004449530,4.38242893,99.859,99.81,22.86068642]
[1770004449726,4.38242893,99.859,99.8,22.86068642]
[1770004449931,4.27527085,99.857,99.769,4.29169773]
[1770004450137,4.38242893,99.829,99.755,4.29169773]
[1770004450634,4.38242893,99.869,99.81,22.86068642]
[1770004450931,4.38242893,99.869,99.793,4.29169773]
[1770004450932,4.38242893,99.869,99.82,22.86068642]
[1770004451231,4.38242893,99.869,99.81,22.86068642]
[1770004451530,4.38242893,99.849,99.81,22.86068642]
[1770004451829,4.38242893,99.839,99.78,22.86068642]
[1770004452223,4.38242893,99.839,99.771,4.29169773]
[1770004452433,4.38242893,99.839,99.78,22.86068642]
[1770004452631,4.38242893,99.839,99.79,22.86068642]
[1770004452933,4.38242893,99.859,99.81,22.86068642]
[1770004453135,4.38242893,99.839,99.79,22.86068642]
[1770004453431,22.86068642,99.84,99.79,22.86068642]
[1770004453829,4.38242893,99.841,99.8,22.86068642]
[1770004454140,4.38242893,99.829,99.78,22.86068642]
[1770004454346,4.38242893,99.847,99.79,22.86068642]
[1770004454533,4.38242893,99.847,99.8,22.86068642]
[1770004454741,4.38242893,99.869,99.82,22.86068642]
[1770004455238,4.38242893,99.869,99.757,50.70534758]
[1770004455421,4.33860464,99.839,99.78,22.86068642]
[1770004455616,22.86068642,99.82,99.77,22.86068642]
[1770004455820,4.33860464,99.852,99.8,22.86068642]
[1770004456133,4.33860464,99.871,99.795,4.29169773]
[1770004456335,4.33860464,99.871,99.82,22.86068642]
[1770004456675,10.00645598,99.936,99.795,4.29169773]
[1770004456676,4.33860464,99.912,99.86,22.86068642]
[1770004456930,4.33860464,99.912,99.87,22.86068642]
[1770004457124,4.33860464,99.909,99.86,22.86068642]
[1770004457920,4.33860464,99.909,99.85,22.86068642]
[1770004458248,4.33860464,99.899,99.84,22.86068642]
[1770004458539,4.33860464,99.889,99.84,22.86068642]
[1770004459119,27.86,99.917,99.784,4.27527085]
[1770004459120,4.33860464,99.916,99.86,22.86068642]
[1770004459320,4.33860464,99.916,99.784,4.27527085]
[1770004459321,22.86068642,99.95,99.878,4.29169773]
[1770004459521,4.33860464,99.952,99.91,22.86068642]
[1770004459946,4.33860464,99.949,99.9,22.86068642]
[1770004460154,4.33860464,99.939,99.88,22.86068642]
[1770004460527,4.33860464,99.939,99.89,22.86068642]
[1770004461150,4.33860464,99.977,99.91,4.29169773]
[1770004461454,4.33860464,99.995,99.95,22.86068642]
[1770004461680,4.33860464,99.989,99.93,22.86068642]
[1770004461845,4.33860464,99.989,99.95,22.86068642]
[1770004462341,0.1,100.01,99.954,4.29169773]
[1770004462528,0.1,100.01,100.0,22.86068642]
[1770004462736,4.33860464,100.06,100.0,22.86068642]
[1770004462946,27.19929106,100.03,99.98,22.86068642]
[1770004463331,22.86068642,100.01,99.96,22.86068642]
[1770004463733,4.33860464,100.06,100.0,22.86068642]
[1770004463940,4.33860464,100.05,99.99,22.86068642]
[1770004464449,22.86068642,100.04,99.99,22.86068642]
[1770004464650,4.33860464,100.05,100.01,22.86068642]
[1770004464854,4.33860464,100.05,99.925,4.29169773]
[1770004464855,27.19929106,100.05,100.0,22.86068642]
[1770004465149,27.19929106,100.05,99.99,22.86068642]
[1770004465350,27.19929106,100.05,99.925,4.29169773]
[1770004465351,22.86068642,100.03,99.98,22.86068642]
[1770004465656,4.33860464,100.02,99.904,4.29169773]
[1770004465853,22.86068642,100.0,99.95,22.86068642]
[1770004466058,4.33860464,100.02,99.97,22.86068642]
[1770004466350,27.19929106,100.06,100.01,22.86068642]
[1770004466554,4.33860464,100.06,100.02,22.86068642]
[1770004467138,27.19929106,100.06,100.01,22.86068642]
[1770004467340,27.84,100.08,100.0,22.86068642]
[1770004467341,27.19929106,100.05,100.0,22.86068642]
[1770004467534,27.84,100.08,99.99,22.86068642]
[1770004467535,27.19929106,100.04,99.99,22.86068642]
[1770004467737,4.33860464,100.04,100.0,22.86068642]
[1770004468348,55.03929106,100.08,100.02,22.86068642]
[1770004468669,32.17860464,100.08,100.01,4.29169773]
[1770004468869,27.19929106,100.07,100.02,22.86068642]
[1770004469075,22.86068642,100.06,100.01,22.86068642]
[1770004469274,22.86068642,100.06,99.911,10.00883867]
[1770004469275,27.19929106,100.03,99.954,4.29169773]
[1770004469572,27.19929106,100.03,99.307,103.9]
[1770004469573,22.86068642,100.05,100.0,22.86068642]
[1770004469774,4.43860464,100.09,100.04,22.86068642]
[1770004469959,4.43860464,100.09,99.97,22.86068642]
[1770004469960,0.1,100.09,100.06,22.86068642]
[1770004470280,0.1,100.09,99.984,4.27527085]
[1770004470281,0.1,100.09,100.08,22.86068642]
[1770004470570,22.86068642,100.14,100.06,4.29169773]
[1770004470756,22.86068642,100.13,100.08,22.86068642]
[1770004471149,4.33860464,100.11,100.04,4.29169773]
[1770004471372,27.19929106,100.09,100.02,4.29169773]
[1770004471571,22.86068642,100.06,100.01,22.86068642]
[1770004471752,22.86068642,100.05,100.0,27.15238415]
[1770004471951,4.33860464,100.09,100.02,27.15238415]
[1770004472147,4.33860464,100.09,100.03,22.86068642]
[1770004472364,22.86068642,100.1,100.02,4.29169773]
[1770004472569,22.86068642,100.09,100.02,4.29169773]
[1770004472754,27.19929106,100.1,100.02,4.29169773]
[1770004472959,22.86068642,100.09,100.02,4.29169773]
[1770004473168,27.19929106,100.1,100.02,4.29169773]
[1770004473362,22.86068642,100.09,100.02,4.29169773]
[1770004473671,27.19929106,100.09,100.02,4.29169773]
[1770004473869,27.19929106,100.08,100.02,4.29169773]
[1770004474074,22.86068642,100.07,100.02,22.86068642]
[1770004474376,4.33860464,100.02,99.902,4.29169773]
[1770004474568,22.86068642,99.99,99.941,4.29169773]
[1770004474770,22.86068642,100.0,99.95,22.86068642]
[1770004474976,4.27527085,100.07,99.991,4.29169773]
[1770004475183,22.86068642,100.05,100.0,22.86068642]
[1770004475359,22.86068642,100.04,99.991,4.29169773]
[1770004475551,4.33860464,100.04,99.98,22.86068642]
[1770004475755,22.86068642,100.0,99.952,4.29169773]
[1770004476057,4.33860464,100.02,99.893,4.29169773]
[1770004476262,22.86068642,100.0,99.96,22.86068642]
[1770004476459,4.33860464,99.994,99.936,4.29169773]
[1770004476660,22.83682706,99.98,99.93,22.83682706]
[1770004476867,22.83682706,99.98,99.94,22.83682706]
[1770004477072,22.83682706,99.96,99.92,22.83682706]
[1770004477257,22.83682706,99.95,99.91,22.83682706]
[1770004477457,22.83682706,99.96,99.91,22.83682706]
[1770004477863,22.83682706,99.93,99.882,4.09141084]
[1770004478179,22.83682706,99.92,99.882,4.09141084]
[1770004478358,4.09151445,99.924,99.85,22.83682706]
[1770004478560,4.09151445,99.924,99.86,22.83682706]
[1770004478978,22.83682706,99.88,99.84,22.83682706]
[1770004479275,4.09151445,99.886,99.81,22.83682706]
[1770004479475,22.83682706,99.85,99.81,22.83682706]
[1770004479776,22.83682706,99.86,99.81,22.83682706]
[1770004480169,22.83682706,99.84,99.791,4.09141084]
[1770004480469,4.09151445,99.866,99.79,22.83682706]
[1770004480672,22.83682706,99.83,99.79,22.83682706]
[1770004481070,22.83682706,99.82,99.773,4.09141084]
[1770004481266,22.83682706,99.81,99.755,4.09141084]
[1770004481472,22.83682706,99.82,99.755,4.09141084]
[1770004481672,4.09151445,99.831,99.755,4.09141084]
[1770004481882,22.83682706,99.8,99.755,4.09141084]
[1770004482068,22.83682706,99.79,99.74,22.83682706]
[1770004482464,22.83682706,99.79,99.741,4.09141084]
[1770004482658,22.83682706,99.78,99.731,4.09141084]
[1770004482863,4.09151445,99.794,99.721,4.09141084]
[1770004483081,4.09151445,99.794,99.73,22.83682706]
[1770004483476,4.09151445,99.794,99.721,4.09141084]
[1770004483796,22.83682706,99.75,99.71,0.2]
[1770004483966,22.83682706,99.73,99.68,22.83682706]
[1770004484165,22.83682706,99.72,99.67,22.83682706]
[1770004484369,22.83682706,99.71,99.67,22.83682706]
[1770004484569,22.83682706,99.72,99.68,22.83682706]
[1770004484768,22.83682706,99.72,99.627,4.27527085]
[1770004484769,22.83682706,99.74,99.69,26.9282379]
[1770004484980,22.83682706,99.73,99.69,4.09141084]
[1770004485177,22.83682706,99.73,99.68,22.83682706]
[1770004485571,4.09151445,99.757,99.69,22.83682706]
[1770004485770,22.83682706,99.73,99.681,4.09141084]
[1770004486085,22.83682706,99.74,99.69,22.83682706]
[1770004486384,22.83682706,99.71,99.67,22.83682706]
[1770004486595,22.83682706,99.71,99.663,4.09141084]
[1770004487572,22.83682706,99.74,99.691,4.15097098]
[1770004487766,22.83682706,99.74,99.7,22.83682706]
[1770004488278,22.83682706,99.74,99.691,4.15097098]
[1770004488577,22.83682706,99.74,99.69,22.83682706]
[1770004488776,22.83682706,99.74,99.7,22.83682706]
[1770004488992,22.83682706,99.76,99.71,22.83682706]
[1770004489282,27.86,99.781,99.74,22.83682706]
[1770004489688,27.86,99.781,99.75,22.83682706]
[1770004489865,22.83682706,99.79,99.75,22.83682706]
[1770004490062,22.83682706,99.77,99.73,22.83682706]
[1770004490290,22.83682706,99.77,99.721,4.15097098]
[1770004490500,22.83682706,99.76,99.721,4.15097098]
[1770004490663,22.83682706,99.78,99.731,4.15097098]
[1770004490867,22.83682706,99.79,99.74,22.83682706]
[1770004491173,22.83682706,99.77,99.72,22.83682706]
[1770004491486,22.83682706,99.78,99.73,22.83682706]
[1770004491704,22.83682706,99.77,99.73,22.83682706]
[1770004492073,4.14060464,99.818,99.76,22.83682706]
[1770004492283,22.83682706,99.81,99.76,22.83682706]
[1770004493084,50.02202859,99.956,99.74,22.83682706]
[1770004493085,22.83682706,99.78,99.74,22.83682706]
[1770004493594,22.83682706,99.79,99.74,22.83682706]
[1770004493911,22.83682706,99.8,99.75,22.83682706]
[1770004494219,22.83682706,99.78,99.74,22.83682706]
[1770004494367,22.83682706,99.82,99.77,22.83682706]
[1770004494998,22.83682706,99.82,99.78,22.83682706]
[1770004495181,22.83682706,99.81,99.761,4.15097098]
[1770004495480,22.83682706,99.81,99.77,22.83682706]
[1770004495865,4.14060464,99.82,99.77,22.83682706]
[1770004496081,22.83682706,99.83,99.781,4.15097098]
[1770004496386,22.83682706,99.8,99.764,4.15097098]
[1770004496587,22.83682706,99.83,99.781,4.15097098]
[1770004496907,22.83682706,99.83,99.78,22.83682706]
[1770004497186,22.83682706,99.81,99.774,4.15097098]
[1770004497492,22.83682706,99.82,99.774,4.15097098]
[1770004497885,22.83682706,99.8,99.76,22.83682706]
[1770004498581,22.83682706,99.8,99.753,4.15097098]
[1770004499286,22.83682706,99.81,99.761,4.15097098]
[1770004499590,4.14060464,99.823,99.761,4.15097098]
[1770004499591,22.83682706,99.8,99.761,4.15097098]
[1770004500174,22.83682706,99.82,99.771,4.15097098]
[1770004500488,22.83682706,99.81,99.77,22.83682706]
[1770004500713,22.83682706,99.81,99.669,10.03311754]
[1770004500714,4.14060464,99.891,99.801,4.15097098]
[1770004500866,22.83682706,99.9,99.85,22.83682706]
[1770004501073,5.23873972,99.901,99.88,22.83682706]
[1770004501371,22.83682706,99.95,99.891,4.15097098]
[1770004501570,32.02060464,99.98,99.911,4.15097098]
[1770004501771,32.02060464,99.98,99.94,22.83682706]
[1770004501993,4.14060464,99.998,99.941,4.15097098]
[1770004502294,4.14060464,99.998,99.847,10.01529833]
[1770004502295,26.9774317,100.02,99.97,22.83682706]
[1770004502465,27.88,100.06,99.939,4.15097098]
[1770004502466,22.83682706,99.99,99.939,4.15097098]
[1770004502665,22.83682706,99.97,99.92,22.83682706]
[1770004502891,22.83682706,100.0,99.951,4.15097098]
[1770004503065,22.83682706,99.97,99.931,4.15097098]
[1770004503273,4.14060464,100.06,99.961,4.15097098]
[1770004503473,50.79017746,100.16,100.02,22.83682706]
[1770004503474,22.83682706,100.07,100.02,22.83682706]
[1770004503889,22.83682706,100.07,99.931,27.86]
[1770004503890,0.1,100.08,100.05,26.98779804]
[1770004504098,4.23960464,100.11,100.05,22.83682706]
[1770004504298,22.83682706,100.07,100.02,4.15097098]
[1770004504505,22.83682706,100.05,100.0,26.98779804]
[1770004504672,4.23960464,100.08,100.0,4.15097098]
[1770004504873,22.83682706,100.05,100.01,26.98779804]
[1770004505181,4.23960464,100.08,99.991,4.15097098]
[1770004505182,4.23960464,100.07,99.991,4.15097098]
[1770004505380,22.83682706,100.06,100.02,26.98779804]
[1770004506004,22.83682706,100.07,100.02,26.98779804]
[1770004506327,22.83682706,100.07,100.03,22.83682706]
[1770004506514,22.83682706,100.09,100.04,26.98779804]
[1770004506835,27.0764317,100.05,99.981,4.15097098]
[1770004507106,22.83682706,100.01,99.981,4.15097098]
[1770004507510,22.83682706,100.01,99.932,4.15097098]
[1770004507511,22.83682706,99.99,99.932,4.15097098]
[1770004507806,22.83682706,99.98,99.941,4.26275035]
[1770004507990,22.83682706,99.97,99.941,4.26275035]
[1770004508190,22.83682706,99.95,99.901,4.26275035]
[1770004508407,22.83682706,99.94,99.901,4.26275035]
[1770004508613,30.0,99.91,99.901,4.26275035]
[1770004509006,25.5,99.91,99.901,4.26275035]
[1770004509226,13.9406,99.91,99.9,22.83682706]
[1770004509491,22.83682706,100.1,99.907,53.47289831]
[1770004509691,4.5,99.989,99.894,27.84]
[1770004510001,4.5,99.989,99.95,22.83682706]
[1770004510192,4.5,99.989,99.94,22.83682706]
[1770004510593,4.5,99.989,99.95,22.83682706]
[1770004510795,4.5,99.989,99.94,22.83682706]
[1770004510999,4.5,99.989,99.95,22.83682706]
[1770004511208,4.5,99.989,99.96,22.83682706]
[1770004511411,4.5,99.989,99.94,22.83682706]
[1770004511716,4.5,99.989,99.95,22.83682706]
[1770004512010,4.5,100.01,99.97,22.83682706]
[1770004512510,4.5,100.0,99.894,27.84]
[1770004512709,22.83682706,99.98,99.93,22.83682706]
[1770004512915,22.83682706,99.97,99.92,22.83682706]
[1770004513212,22.83682706,99.96,99.91,22.83682706]
[1770004513415,22.83682706,99.95,99.9,22.83682706]
[1770004513714,22.83682706,99.95,99.881,0.21771996]
[1770004513894,4.27527085,100.01,99.881,0.21771996]
[1770004513895,4.5,99.929,99.881,0.21771996]
[1770004514097,4.5,99.948,99.91,22.83682706]
[1770004514289,4.5,99.959,99.91,22.83682706]
[1770004514809,24.98884533,100.05,99.881,0.21771996]
[1770004514810,4.5,99.981,99.94,22.83682706]
[1770004514999,4.5,99.981,99.94,20.49542133]
[1770004515198,4.5,99.969,99.92,22.83682706]
[1770004515507,27.33682706,99.96,99.91,22.83682706]
[1770004515706,27.33682706,99.96,99.877,4.27527085]
[1770004515707,4.5,99.96,99.92,22.83682706]
[1770004515908,4.5,99.959,99.91,22.83682706]
[1770004516821,4.27527085,100.01,99.91,22.83682706]
[1770004516822,4.5,99.949,99.91,22.83682706]
[1770004517020,4.5,99.959,99.91,22.83682706]
[1770004517197,22.83682706,99.94,99.836,50.1933693]
[1770004517392,4.5,99.969,99.92,22.83682706]
[1770004517599,4.5,99.929,99.815,50.40020248]
[1770004517895,22.83682706,99.91,99.86,22.83682706]
[1770004518310,5.36086188,99.96,99.85,22.83682706]
[1770004518496,27.84,99.972,99.793,27.84]
[1770004518497,22.83682706,99.91,99.87,22.83682706]
[1770004518703,22.83682706,99.9,99.85,22.83682706]
[1770004518898,4.5,99.909,99.86,22.83682706]
[1770004519101,4.5,99.909,99.817,4.27527085]
[1770004519301,4.5,99.909,99.801,50.35867285]
[1770004519302,4.5,99.889,99.793,27.84]
[1770004519496,27.33682706,99.87,99.82,22.83682706]
[1770004519695,22.83682706,99.89,99.84,22.83682706]
[1770004519894,4.5,99.89,99.85,22.83682706]
[1770004520099,22.83682706,99.91,99.86,22.83682706]
[1770004520316,4.5,99.929,99.88,22.83682706]
[1770004520519,4.5,99.949,99.91,22.83682706]
[1770004520900,4.5,99.949,99.9,22.83682706]
[1770004521415,22.83682706,99.94,99.9,22.83682706]
[1770004521617,22.83682706,99.92,99.88,22.83682706]
[1770004521828,4.5,99.929,99.88,22.83682706]
[1770004522316,4.5,99.929,99.89,22.83682706]
[1770004522516,4.5,99.929,99.88,22.83682706]
[1770004522724,4.5,99.949,99.91,22.83682706]
[1770004522914,4.5,100.08,99.867,0.28432314]
[1770004523112,406.08158864,100.43,99.944,0.28432314]
[1770004523113,4.5,100.03,99.944,0.28432314]
[1770004523319,4.5,100.03,99.943,4.27527085]
[1770004523533,4.5,100.03,100.0,22.83682706]
[1770004523698,27.84,100.11,100.01,22.83682706]
[1770004523699,4.5,100.05,100.01,22.83682706]
[1770004523901,27.33682706,100.05,99.958,4.27527085]
[1770004524121,27.33682706,100.05,99.931,1.00069047]
[1770004524122,27.33682706,100.05,100.0,22.83682706]
[1770004524311,4.5,100.05,100.0,22.83682706]
[1770004524512,27.33682706,100.03,99.98,22.83682706]
[1770004524711,4.5,100.03,99.927,27.84]
[1770004524911,4.5,100.03,99.99,22.83682706]
[1770004525815,4.5,100.03,99.98,22.83682706]
[1770004526423,22.83682706,100.01,99.96,22.83682706]
[1770004526608,22.83682706,100.0,99.95,22.83682706]
[1770004526808,27.33682706,100.01,99.96,22.83682706]
[1770004527324,22.83682706,99.99,99.94,22.83682706]
[1770004527913,22.83682706,100.01,99.96,22.83682706]
[1770004528306,22.83682706,100.03,99.98,22.83682706]
[1770004528503,33.18086188,100.09,99.926,0.24]
[1770004528807,22.83682706,99.94,99.846,0.24]
[1770004529008,35.8991089,100.09,99.723,20.61394548]
[1770004529009,22.83682706,99.91,99.861,0.24]
[1770004529237,80.19368036,100.02,99.792,27.82]
[1770004529238,4.38168727,100.06,99.9,22.83682706]
[1770004529424,4.38168727,100.06,99.877,0.24]
[1770004529425,4.38168727,99.959,99.91,22.83682706]
[1770004529629,4.38168727,99.982,99.94,22.83682706]
[1770004529808,80.97598257,100.1,99.96,22.83682706]
[1770004529809,27.21851433,100.01,99.96,22.83682706]
[1770004530011,4.38168727,99.99,99.95,22.83682706]
[1770004530210,4.38168727,100.01,99.97,22.83682706]
[1770004530411,4.38168727,100.05,100.0,22.83682706]
[1770004530612,4.38168727,100.07,100.03,22.83682706]
[1770004530826,10.08579296,100.15,100.05,22.83682706]
[1770004530827,4.38168727,100.09,100.05,22.83682706]
[1770004531012,4.38168727,100.09,100.06,22.83682706]
[1770004531213,4.38168727,100.09,100.05,22.83682706]
[1770004531409,27.21851433,100.11,100.02,0.24]
[1770004531614,22.83682706,100.09,100.04,22.83682706]
[1770004531815,27.21851433,100.1,100.05,22.83682706]
[1770004532028,4.38168727,100.1,100.06,22.83682706]
[1770004532330,27.21851433,100.14,100.08,22.83682706]
[1770004532533,27.21851433,100.11,100.06,22.83682706]
[1770004532734,22.83682706,100.1,100.04,22.83682706]
[1770004532934,27.21851433,100.11,100.05,22.83682706]
[1770004533121,27.21851433,100.13,100.07,22.83682706]
[1770004533323,4.38168727,100.12,100.07,22.83682706]
[1770004533922,27.21851433,100.12,100.07,22.83682706]
[1770004534411,27.21851433,100.11,100.05,22.83682706]
[1770004534614,27.21851433,100.1,100.05,22.83682706]
[1770004534915,27.21851433,100.1,100.04,22.83682706]
[1770004535233,9.73613273,100.15,100.02,22.83682706]
[1770004535234,27.21851433,100.08,100.02,22.83682706]
[1770004535435,22.83682706,100.07,100.02,22.83682706]
[1770004535614,22.83682706,100.07,100.01,0.24]
[1770004535615,27.21851433,100.08,100.03,22.83682706]
[1770004535813,27.21851433,100.08,100.01,0.24]
[1770004535814,27.21851433,100.08,100.02,22.83682706]
[1770004536024,4.27527085,100.13,100.01,0.24]
[1770004536025,27.21851433,100.07,100.01,22.83682706]
[1770004536226,27.21851433,100.05,100.0,22.83682706]
[1770004536430,27.21851433,100.05,99.99,22.83682706]
[1770004536759,22.83682706,100.02,99.97,22.83682706]
[1770004537029,22.83682706,100.02,99.958,0.24]
[1770004537030,22.83682706,100.02,99.96,22.83682706]
[1770004537535,91.64729904,100.23,100.01,27.35209791]
[1770004537536,27.21851433,100.09,100.01,27.35209791]
[1770004537725,4.38168727,100.09,100.05,22.83682706]
[1770004537918,4.38168727,100.09,100.04,22.83682706]
[1770004538231,4.38168727,100.09,100.03,22.83682706]
[1770004538436,4.38168727,100.09,100.0,0.24]
[1770004538437,27.17368458,100.08,100.02,22.79368458]
[1770004538729,4.38,100.11,100.05,22.79368458]
[1770004538930,4.37527085,100.15,100.05,22.79368458]
[1770004538931,4.38,100.09,100.05,22.79368458]
[1770004539423,4.38,100.14,100.08,22.79368458]